[Event "45th FIDE Olympiad 2024"]
[Site "Budapest"]
[Date "2024.09.14"]
[Round "4.24"]
[White "Doria, Daniel"]
[Black "Mudasir, Iqbal"]
[Result "0-1"]
[ECO "A38"]
[WhiteElo "1745"]
[BlackElo "2055"]
[PlyCount "72"]
[EventDate "2024.09.05"]
[EventType "team-tourn"]
[EventCountry "HUN"]
[WhiteTeam "Guam"]
[BlackTeam "Pakistan"]
[WhiteTeamCountry "GMA"]
[BlackTeamCountry "PAK"]
[TimeControl "40/5400+30:1800+30"]

1. c4 c5 2. Nc3 Nc6 3. g3 g6 4. Bg2 Bg7 5. Nf3 Nf6 6. d3 d6 7. O-O O-O 8. a3 Rb8 9. Rb1 a5 10. Bd2 h6 11. Qc1 Kh7 12. e4 Bg4 13. h3 Bxf3 14. Bxf3 Nd4 15. Bg2 b5 16. cxb5 Rxb5 17. Re1 Rb3 18. Ne2 Nxe2+ 19. Rxe2 Nd7 20. Qc2 a4 21. f4 Qb6 22. Be3 Rb8 23. Qc4 Qb5 24. Qxb5 R8xb5 25. e5 Rb6 26. d4 Rxa3 27. dxc5 Nxc5 28. Bxc5 dxc5 29. bxa3 Rxb1+ 30. Kf2 e6 31. Bc6 Ra1 32. Re3 Bf8 33. Rc3 Ra2+ 34. Kf3 c4 35. Rxc4 Rxa3+ 36. Kg4 h5+ {0-} 0-1

[Event "45th FIDE Olympiad 2024"]
[Site "Budapest"]
[Date "2024.09.14"]
[Round "4.25"]
[White "Kadric, Denis"]
[Black "Suleymanli, Aydin"]
[Result "0-1"]
[ECO "C54"]
[WhiteElo "2553"]
[BlackElo "2632"]
[Annotator "TA"]
[PlyCount "70"]
[EventDate "2024.09.05"]
[EventType "team-tourn"]
[EventCountry "HUN"]
[SourceTitle "playchess.com"]
[Source "ChessBase"]
[SourceQuality "1"]
[WhiteTeam "Montenegro"]
[BlackTeam "Azerbaijan"]
[WhiteTeamCountry "MNE"]
[BlackTeamCountry "AZE"]
[TimeControl "40/5400+30:1800+30"]

{[%evp 9,70,17,8,12,9,7,0,0,19,18,10,0,21,15,60,43,41,41,63,74,102,107,114,114,111,99,106,82,148,151,155,71,85,91,185,194,177,97,94,0,151,117,126,110,140,0,0,-441,-441,-416,-452,-606,-591,-657,-642,-503,-614,-642,-634,-647,-569,-568,-576]} 1. e4 {[%emt 0:00:03]} e5 {[%emt 0:00:08]} 2. Nf3 {[%emt 0:00:06]} Nc6 {[%emt 0:00:05]} 3. Bc4 {[%emt 0:00:06]} Nf6 {[%emt 0:00:09]} 4. d3 {[%emt 0:00:02]} Bc5 {[%emt 0:00:05]} 5. c3 {[%emt 0:00:05]} d6 {[%emt 0:00:10]} 6. a4 {[%emt 0:00:09] Strongly threatening b4.} a5 {[%emt 0:00:19]} 7. Bg5 {[%emt 0:00:05][%cal Bc1g5,Bg5h4,Bh4g3][%mdl 32]} h6 {[%emt 0:00:31]} 8. Bh4 {[%emt 0:00:03] The position is equal.} g5 {[%emt 0:01:08]} 9. Bg3 {[%emt 0:00:05]} O-O {[%emt 0:06:32]} 10. Nbd2 {[%emt 0:01:02][%cal Bb1d2,Bd2f1,Bf1e3][%mdl 32]} Ba7 {[%emt 0:01:38]} 11. h3 {[%emt 0:00:35]} Nh7 {[%emt 0:03:56]} 12. Nf1 {[%emt 0:07:59]} Kg7 {[%emt 0:15:45]} 13. Ne3 {[%emt 0:00:10]} Ne7 {[%emt 0:13:48]} 14. d4 {[%emt 0:16:34]} f5 {[%emt 0:01:23]} 15. exf5 {[%emt 0:06:44]} (15. dxe5 f4 16. Bh2 (16. exd6 cxd6 17. Bh2 fxe3 $17) 16... fxe3 $17) 15... e4 {[%emt 0:00:10]} 16. Nd2 {[%emt 0:00:03][%cal Bf3d2,Bd2f1,Bf1e3][%mdl 32]} Nxf5 {[%emt 0:01:42]} 17. Nxf5+ {[%emt 0:03:37]} (17. Nxe4 Nxe3 18. fxe3 Qe7 $17) 17... Bxf5 {[%emt 0:01:08]} 18. Nf1 {[%emt 0:00:04]} Qe8 {[%emt 0:24:24]} (18... Nf6 $142) 19. Ne3 {[%emt 0:00:39]} Bd7 {[%emt 0:01:07]} 20. Qb3 {[%emt 0:13:36]} (20. h4 $142) 20... Nf6 $16 {[%emt 0:00:27]} 21. h4 {[%emt 0:07:41]} (21. Qxb7 Bb6 22. Bxd6 Rb8 $19) 21... Rb8 {[%emt 0:05:11]} (21... g4 $16 {might work better.}) 22. hxg5 $18 {[%emt 0:04:43]} hxg5 {[%emt 0:00:20]} 23. Bb5 {[%emt 0:00:01]} (23. O-O-O $18) 23... Qe6 {[%emt 0:04:56] [#]} 24. Bc4 {[%emt 0:01:52]} (24. Qc2 $142 $1) 24... Qe8 $16 {[%emt 0:01:27]} 25. Nd5 {[%emt 0:11:24]} Nxd5 {[%emt 0:01:41]} 26. Bxd5 {[%emt 0:00:03]} Rf5 {[%emt 0:01:36]} 27. Kd2 {[%emt 0:10:10]} (27. Bxb7 $2 Be6 (27... Bc8 $2 28. Bxc8 Rxb3 29. Bxf5 $19) 28. c4 (28. d5 $2 Bxd5 29. Qxd5 Rxd5 $19) 28... Bc8 $19 (28... Bxd4 $2 29. O-O $19)) (27. Rh2 $16) 27... b5 $1 $11 {[%emt 0:04:55]} 28. Bxe4 $2 {[%emt 0:04:34][%mdl 8192]} Qxe4 $19 {[%emt 0:00:36]} 29. Rae1 {[%emt 0:00:01]} bxa4 {[%emt 0:01:58]} (29... Qxg2 $2 {perishes.} 30. Re7+ Kg6 31. Reh7 $18) 30. Rxe4 {[%emt 0:04:24] [#] Hoping for Re7+. Black is clearly winning.} Rxb3 {[%emt 0:01:03]} ({Worse is} 30... axb3 31. Re7+ Rf7 32. Rh7+ Kxh7 33. Rxf7+ Kg6 34. Rxd7 $15) 31. Re7+ {[%emt 0:00:01]} Rf7 {[%emt 0:00:18]} 32. Rh7+ {[%emt 0:00:02]} Kxh7 {[%emt 0:00:07]} 33. Rxf7+ {[%emt 0:00:01]} Kg6 {[%emt 0:01:05]} 34. Rxd7 {[%emt 0:00:04]} Rxb2+ {[%emt 0:00:03]} 35. Kc1 {[%emt 0:00:06]} a3 {[%emt 0:00:20] Never resign too early!   Weighted Error Value: White=0.55/Black=0.11 (very precise) .  Loses game:     	White=1     	---        Mistake:       	White=4     	Black=2      Inaccurate:     	White=1     	Black=2      OK:         	White=7     	Black=6      Best:        	White=1     	Black=6      Strong:       	---       	Black=1} 0-1

[Event "45th FIDE Olympiad 2024"]
[Site "Budapest"]
[Date "2024.09.14"]
[Round "4.25"]
[White "Tchouka, Yakini"]
[Black "Kao, Jamison Edrich"]
[Result "0-1"]
[ECO "B66"]
[WhiteElo "1932"]
[BlackElo "2125"]
[PlyCount "88"]
[EventDate "2024.09.05"]
[EventType "team-tourn"]
[EventCountry "HUN"]
[WhiteTeam "Togo"]
[BlackTeam "Hong Kong, China"]
[WhiteTeamCountry "TOG"]
[BlackTeamCountry "HKG"]
[TimeControl "40/5400+30:1800+30"]

1. e4 c5 2. Nf3 d6 3. d4 cxd4 4. Nxd4 Nf6 5. Nc3 Bd7 6. Bg5 e6 7. Qd2 a6 8. Be2 Nc6 9. Nb3 b5 10. a3 h6 11. Bh4 Ne5 12. f4 Nc4 13. Qc1 Qb6 14. Bf2 Qb7 15. O-O Rc8 16. Bd3 Be7 17. Nd2 O-O 18. h3 Bc6 19. Re1 d5 20. exd5 Nxd5 21. Nxd5 Bxd5 22. Kh2 Bf6 23. c3 Nxd2 24. Qxd2 Bxg2 25. Rg1 Be4 26. Qe2 Bxd3 27. Qxd3 Rfd8 28. Qe3 Qd5 29. Rg2 Qd3 30. Qb6 Qd6 31. Qe3 Rc4 32. Bg3 Qc5 33. Qf3 Qd5 34. Qg4 h5 35. Qe2 h4 36. Bf2 Rxf4 37. Rag1 Qf5 38. Be1 Rd3 39. Rg4 Rff3 40. Qg2 Be5+ 41. Bg3 hxg3+ 42. Kh1 Rf2 43. Qa8+ Kh7 44. Rh4+ Kg6 {0-} 0-1

[Event "45th FIDE Olympiad 2024"]
[Site "Budapest"]
[Date "2024.09.14"]
[Round "4.26"]
[White "Abasov, Nijat"]
[Black "Petrov, Nikita"]
[Result "1/2-1/2"]
[ECO "E11"]
[WhiteElo "2626"]
[BlackElo "2574"]
[Annotator "TA"]
[PlyCount "60"]
[EventDate "2024.09.05"]
[EventType "team-tourn"]
[EventCountry "HUN"]
[SourceTitle "playchess.com"]
[Source "ChessBase"]
[SourceQuality "1"]
[WhiteTeam "Azerbaijan"]
[BlackTeam "Montenegro"]
[WhiteTeamCountry "AZE"]
[BlackTeamCountry "MNE"]
[TimeControl "40/5400+30:1800+30"]

{[%evp 12,60,22,4,35,36,50,45,52,46,38,36,68,65,62,44,43,29,39,43,40,25,13,0,0,0,28,18,25,13,14,7,12,3,0,0,5,0,0,0,0,0,0,0,0,0,8,0,0,0,0]} 1. d4 {[%emt 0:00:03]} Nf6 {[%emt 0:00:14]} 2. Nf3 {[%emt 0:00:32]} d5 {[%emt 0:00:24]} 3. c4 {[%emt 0:00:06]} e6 {[%emt 0:01:14]} 4. g3 {[%emt 0:00:06]} Bb4+ {[%emt 0:02:34]} 5. Bd2 {[%emt 0:00:30]} a5 {[%emt 0:01:59]} 6. Bg2 {[%emt 0:00:38]} O-O {[%emt 0:00:46]} 7. Qc2 {[%emt 0:00:07]} c5 {[%emt 0:04:12]} 8. cxd5 {[%emt 0:09:20]} cxd4 {[%emt 0:00:18]} 9. Nxd4 {[%emt 0:00:26]} exd5 {[%emt 0:02:08][%cal Ob8c6] White is slightly better.} (9... Bxd2+ 10. Qxd2 (10. Nxd2 exd5 11. O-O Bd7 $14) 10... exd5 11. Nc3) 10. O-O {[%emt 0:11:17]} Re8 {[%emt 0:00:15]} 11. e3 {[%emt 0:06:49]} Bd7 {[%emt 0:26:04]} 12. a3 {[%emt 0:08:17] White is more active.} Bxd2 {[%emt 0:02:10]} 13. Nxd2 {[%emt 0:01:53]} Nc6 {[%emt 0:00:10]} 14. Nxc6 {[%emt 0:01:04]} bxc6 {[%emt 0:00:27]} 15. Nb3 {[%emt 0:00:57]} h5 {[%emt 0:06:25][%cal Oh5h4]} 16. Nc5 {[%emt 0:04:54]} h4 {[%emt 0:01:39]} 17. Nxd7 {[%emt 0:06:02]} Qxd7 {[%emt 0:00:08]} 18. Rfd1 {[%emt 0:00:05]} hxg3 {[%emt 0:03:42]} 19. hxg3 {[%emt 0:00:27]} Rab8 {[%emt 0:04:04]} 20. Rd4 {[%emt 0:00:38]} Rb6 {[%emt 0:00:47] The position is equal.} 21. b4 {[%emt 0:06:31]} axb4 {[%emt 0:00:20]} 22. axb4 {[%emt 0:00:15]} Qd6 {[%emt 0:01:49]} 23. Rc1 {[%emt 0:08:34]} Reb8 {[%emt 0:03:34][%cal Be8b8,Bb8b4,Bb4d4][%mdl 32]} 24. Qc3 {[%emt 0:05:31]} (24. Rf4 {with more complications.} Nh5 25. Rh4 Nf6 26. Bf3) 24... Rxb4 {[%emt 0:02:04]} (24... Qe5 {seems wilder.} 25. e4 Rb5 26. Qd3 dxe4 27. Bxe4 Rxb4 28. Rd8+ Rxd8 29. Qxd8+ Qe8) 25. Rxb4 {[%emt 0:00:23]} Rxb4 {[%emt 0:00:14]} (25... Qxb4 {keeps more tension.} 26. Qxc6 d4 27. exd4 Qxd4 28. Rc4 Qe5) 26. Qxc6 {[%emt 0:00:09]} Qxc6 {[%emt 0:00:08]} 27. Rxc6 $11 {[%emt 0:00:04] KRB-KRN} d4 {[%emt 0:03:41]} 28. exd4 {[%emt 0:00:30]} Rxd4 {[%emt 0:00:02]} 29. Bf3 {[%emt 0:00:28]} Kf8 {[%emt 0:00:38]} 30. Kg2 {[%emt 0:00:09]} Ke7 {[%emt 0:00:09] Weighted Error Value: White=0.05 (flawless) /Black=0.07 (flawless) .  Inaccurate:     	---       	Black=2      OK:         	White=6     	Black=7} 1/2-1/2

[Event "45th FIDE Olympiad 2024"]
[Site "Budapest"]
[Date "2024.09.14"]
[Round "4.26"]
[White "Lam, Daniel King Wai"]
[Black "Egbe, Kossi Thierry"]
[Result "1-0"]
[ECO "B07"]
[WhiteElo "2088"]
[BlackElo "1847"]
[PlyCount "71"]
[EventDate "2024.09.05"]
[EventType "team-tourn"]
[EventCountry "HUN"]
[WhiteTeam "Hong Kong, China"]
[BlackTeam "Togo"]
[WhiteTeamCountry "HKG"]
[BlackTeamCountry "TOG"]
[TimeControl "40/5400+30:1800+30"]

1. e4 d6 2. d4 Nf6 3. Nc3 g6 4. Bg5 Bg7 5. Qd2 c6 6. f4 h6 7. Bh4 Qb6 8. O-O-O Bg4 9. Be2 Bxe2 10. Ngxe2 Nbd7 11. e5 Ng8 12. exd6 e6 13. g4 h5 14. h3 Bf6 15. Bf2 O-O-O 16. Ne4 Nb8 17. N2c3 Qa5 18. Kb1 Bg7 19. Bh4 Rd7 20. Nc5 Rxd6 21. N3e4 Qc7 22. Nxd6+ Qxd6 23. Ne4 Qd5 24. Qe2 hxg4 25. hxg4 Na6 26. c4 Qd7 27. d5 exd5 28. cxd5 cxd5 29. Nd6+ Qxd6 30. Qe8+ Kc7 31. Rc1+ Nc5 32. Bd8+ Qxd8 33. Rxc5+ Kd6 34. Qxd8+ Kxc5 35. Rxh8 Bxh8 36. Qxg8 1-0

[Event "45th FIDE Olympiad 2024"]
[Site "Budapest"]
[Date "2024.09.14"]
[Round "4.27"]
[White "Djukic, Nikola"]
[Black "Mamedov, Rauf"]
[Result "1/2-1/2"]
[ECO "B32"]
[WhiteElo "2515"]
[BlackElo "2637"]
[Annotator "TA"]
[PlyCount "71"]
[EventDate "2024.09.05"]
[EventType "team-tourn"]
[EventCountry "HUN"]
[SourceTitle "playchess.com"]
[Source "ChessBase"]
[SourceQuality "1"]
[WhiteTeam "Montenegro"]
[BlackTeam "Azerbaijan"]
[WhiteTeamCountry "MNE"]
[BlackTeamCountry "AZE"]
[TimeControl "40/5400+30:1800+30"]

{[%evp 10,71,28,27,32,34,36,30,43,37,36,27,24,23,33,18,22,30,35,31,31,27,29,31,48,41,47,48,38,42,37,51,61,46,41,36,37,32,35,32,45,37,35,27,36,15,32,13,15,12,13,0,0,0,1,0,0,0,0,0,0,0,0,0]} 1. e4 {[%emt 0:00:03]} c5 {[%emt 0:00:08]} 2. Nf3 {[%emt 0:00:07][%cal Bg1f3,Bf3d4,Bd4b5,Bb5a3,Ba3c2][%mdl 32]} Nc6 {[%emt 0:00:09]} 3. d4 {[%emt 0:00:10]} cxd4 {[%emt 0:00:05]} 4. Nxd4 {[%emt 0:00:04]} e5 {[%emt 0:00:03]} 5. Nb5 {[%emt 0:00:19]} d6 {[%emt 0:00:03]} 6. c4 {[%emt 0:00:59]} g6 {[%emt 0:00:04]} 7. Be3 {[%emt 0:01:52]} Be6 {[%emt 0:06:03]} 8. N1c3 {[%emt 0:00:48] Strongly threatening Nd5.} a6 {[%emt 0:00:06] White has an edge.} 9. Na3 {[%emt 0:00:09]} Bg7 {[%emt 0:00:33]} 10. Nc2 {[%emt 0:10:57]} Nf6 {[%emt 0:00:36][%cal Bg8f6,Bf6h5,Bh5f4,Bf4e2][%mdl 32]} 11. Be2 {[%emt 0:00:47]} O-O {[%emt 0:00:04]} 12. O-O {[%emt 0:04:45]} Rc8 {[%emt 0:00:37]} 13. f3 {[%emt 0:07:13]} Nh5 {[%emt 0:00:07]} 14. Qd2 {[%emt 0:01:42]} Nf4 {[%emt 0:16:32]} 15. Rfd1 {[%emt 0:00:26]} Nxe2+ {[%emt 0:03:45]} 16. Qxe2 {[%emt 0:00:32]} Nd4 {[%emt 0:04:28]} 17. Nxd4 {[%emt 0:00:32]} exd4 {[%emt 0:00:03]} 18. Bxd4 {[%emt 0:00:07]} Rxc4 {[%emt 0:00:09]} 19. Bxg7 {[%emt 0:05:11]} Kxg7 {[%emt 0:00:31]} 20. Qf2 {[%emt 0:04:58]} Qc7 {[%emt 0:14:08]} 21. Rd4 {[%emt 0:04:07]} Qc5 {[%emt 0:16:56]} 22. Rad1 {[%emt 0:02:41]} Rxd4 {[%emt 0:01:41]} 23. Qxd4+ {[%emt 0:03:28]} Qxd4+ {[%emt 0:02:17]} 24. Rxd4 $14 {[%emt 0:00:08][%mdl 4096] Endgame. KRB-KRN} Rd8 $1 {[%emt 0:00:01]} 25. Kf2 {[%emt 0:11:24]} Kf6 {[%emt 0:01:33]} 26. Ke3 {[%emt 0:01:17]} Ke7 {[%emt 0:00:55]} 27. Rb4 {[%emt 0:22:07]} b5 {[%emt 0:01:16]} 28. Rd4 {[%emt 0:05:07]} Rc8 {[%emt 0:01:19] The position is equal.} 29. Kd2 {[%emt 0:00:55]} Rc5 {[%emt 0:03:52]} 30. a4 {[%emt 0:05:10]} bxa4 {[%emt 0:05:13]} 31. Rxa4 {[%emt 0:00:07]} a5 {[%emt 0:00:18]} 32. b4 {[%emt 0:01:56]} axb4 {[%emt 0:00:25]} 33. Rxb4 {[%emt 0:00:05]} d5 {[%emt 0:02:35]} 34. exd5 {[%emt 0:00:49]} Bxd5 {[%emt 0:00:02]} 35. Rb5 {[%emt 0:00:28]} Rxb5 {[%emt 0:00:14]} 36. Nxb5 {[%emt 0:00:06] Weighted Error Value: White=0.04 (flawless) /Black=0.02 (flawless) .  OK:         	White=10    	Black=17     Best:        	---       	Black=2      Strong:       	---       	Black=1} 1/2-1/2

[Event "45th FIDE Olympiad 2024"]
[Site "Budapest"]
[Date "2024.09.14"]
[Round "4.27"]
[White "Amewounou, Komlan Kouessan"]
[Black "Chan, Wang Ip Boris"]
[Result "0-1"]
[ECO "B20"]
[WhiteElo "1825"]
[BlackElo "2016"]
[PlyCount "48"]
[EventDate "2024.09.05"]
[EventType "team-tourn"]
[EventCountry "HUN"]
[WhiteTeam "Togo"]
[BlackTeam "Hong Kong, China"]
[WhiteTeamCountry "TOG"]
[BlackTeamCountry "HKG"]
[TimeControl "40/5400+30:1800+30"]

1. e4 c5 2. a3 e6 3. b4 cxb4 4. axb4 Bxb4 5. c3 Be7 6. Na3 d6 7. Nb5 Nc6 8. d4 Nf6 9. d5 exd5 10. exd5 Ne5 11. Rxa7 Rxa7 12. Nxa7 Bd7 13. Nb5 Qa5 14. Qb3 O-O 15. Be2 Rc8 16. Bb2 Rc5 17. Na3 Nxd5 18. Nc4 Nxc4 19. Bxc4 Ba4 20. Qa2 Nxc3 21. Bxf7+ Kf8 22. Qa1 Ne4+ 23. Ke2 Qd2+ 24. Kf3 Qxf2+ {0-} 0-1

[Event "45th FIDE Olympiad 2024"]
[Site "Budapest"]
[Date "2024.09.14"]
[Round "4.28"]
[White "Mamedyarov, Shakhriyar"]
[Black "Draskovic, Luka"]
[Result "1-0"]
[ECO "D02"]
[WhiteElo "2733"]
[BlackElo "2497"]
[Annotator "TA"]
[PlyCount "83"]
[EventDate "2024.09.05"]
[EventType "team-tourn"]
[EventCountry "HUN"]
[SourceTitle "playchess.com"]
[Source "ChessBase"]
[SourceQuality "1"]
[WhiteTeam "Azerbaijan"]
[BlackTeam "Montenegro"]
[WhiteTeamCountry "AZE"]
[BlackTeamCountry "MNE"]
[TimeControl "40/5400+30:1800+30"]

{[%evp 12,83,39,27,26,20,25,18,27,27,25,32,37,47,49,40,51,53,61,24,61,62,64,63,64,64,68,69,66,66,68,68,70,68,73,61,64,63,84,71,83,74,83,72,79,74,70,60,86,83,154,21,56,57,79,91,85,82,80,89,83,81,175,160,171,163,157,155,257,268,303,280,297,292]} 1. Nf3 {[%emt 0:00:04]} d5 {[%emt 0:00:21]} 2. g3 {[%emt 0:00:04]} Nf6 {[%emt 0:03:04]} 3. Bg2 {[%emt 0:00:07]} e6 {[%emt 0:00:42]} 4. O-O {[%emt 0:00:33]} Bd6 {[%emt 0:01:15]} 5. c4 {[%emt 0:01:41]} O-O {[%emt 0:00:43]} 6. d4 {[%emt 0:01:13]} h6 {[%emt 0:00:38] 6...Nc6 is becoming the main line. D02: 1 d4 d5 2 Nf3 sidelines, including 2...Nf6 3 g3 and 2...Nf6 3 Bf4.} 7. Qc2 {[%emt 0:00:24]} b6 {[%emt 0:06:30]} 8. Nc3 {[%emt 0:02:37]} Bb7 {[%emt 0:02:41]} 9. cxd5 {[%emt 0:04:02]} exd5 {[%emt 0:00:52]} 10. Nh4 $5 {[%emt 0:01:46][%mdl 4] Leaves trodden paths.} Nc6 {[%emt 0:08:49]} 11. Nf5 {[%emt 0:02:07]} (11. Bxd5 $2 Nb4 (11... Nxd4 $2 12. Qd1 $19) 12. Bxf7+ Rxf7 $19) 11... Ne7 {[%emt 0:02:18]} 12. Nxd6 {[%emt 0:02:00]} cxd6 {[%emt 0:00:06]} 13. b3 $146 {[%emt 0:06:13]} ({Predecessor:} 13. Bf4 Rc8 14. Qb3 a6 15. Qa3 Nf5 16. Bh3 Nxd4 17. Bxc8 Qxc8 18. Qxd6 Qh3 19. f3 {1-0 Reyes Zavaleta,F (2051)-Ramirez Mori,A (1534) South America-ch 1st 2023 (8)}) 13... Rc8 {[%emt 0:05:33]} 14. Qd3 {[%emt 0:00:16]} Qd7 {[%emt 0:02:06]} 15. a4 {[%emt 0:07:41]} a6 {[%emt 0:05:57]} 16. Ba3 {[%emt 0:00:17]} Rc6 {[%emt 0:06:10]} 17. Rfc1 {[%emt 0:03:32]} Rfc8 {[%emt 0:07:32]} 18. Nd1 {[%emt 0:00:47]} Rxc1 {[%emt 0:14:54]} 19. Rxc1 {[%emt 0:00:08]} Rxc1 {[%emt 0:00:47]} 20. Bxc1 {[%emt 0:00:02]} Qc6 {[%emt 0:04:37]} 21. Ba3 {[%emt 0:01:30]} Bc8 {[%emt 0:01:59]} 22. Ne3 {[%emt 0:10:16]} a5 {[%emt 0:10:44]} 23. h3 {[%emt 0:03:46]} h5 {[%emt 0:01:28]} 24. Kh2 {[%emt 0:02:40]} g6 {[%emt 0:00:26]} 25. f3 {[%emt 0:06:22]} Nf5 {[%emt 0:01:44]} 26. Nd1 {[%emt 0:01:22]} Ng7 {[%emt 0:03:37]} 27. Nc3 {[%emt 0:03:41]} Ne6 {[%emt 0:01:24]} 28. Qd2 {[%emt 0:00:46]} Ba6 {[%emt 0:00:26]} 29. e4 {[%emt 0:01:38]} h4 {[%emt 0:01:39]} 30. gxh4 {[%emt 0:02:03]} Bb7 {[%emt 0:01:43]} (30... Qc7 $142) 31. Qe3 {[%emt 0:04:56]} (31. h5 $16) 31... Qd7 {[%emt 0:00:30]} (31... Qc7 {with more complications.} 32. Nb5 Qc2 33. Nxd6 Nh5) 32. Nb5 {[%emt 0:01:01]} Ne8 {[%emt 0:01:45]} 33. h5 {[%emt 0:00:33]} gxh5 {[%emt 0:00:29]} 34. Qh6 {[%emt 0:01:13]} Bc6 {[%emt 0:01:48]} 35. Nc3 {[%emt 0:00:49]} (35. Qxh5 Bxb5 36. axb5 Qxb5 $17) 35... N6g7 {[%emt 0:00:22]} 36. Qg5 {[%emt 0:04:28]} (36. Nxd5 Bxd5 37. exd5 b5 $11) 36... dxe4 {[%emt 0:00:55]} (36... Bb7 $16) 37. fxe4 $18 {[%emt 0:00:02]} ({Resist} 37. d5 $6 exf3 38. Bxf3 (38. dxc6 Qxc6 39. Nd5 Qc2 $17) 38... Bb7 $11) 37... Bb7 {[%emt 0:00:37]} 38. d5 {[%emt 0:01:27]} f6 {[%emt 0:01:07]} 39. Qe3 {[%emt 0:00:24]} Qd8 {[%emt 0:00:19]} (39... Qe7 $16 40. Bc1 (40. Qxb6 $2 {too greedy.} Qe5+ 41. Kg1 Qxc3 $19) 40... Ba6) 40. Nb5 $18 {[%emt 0:01:05]} Ba6 {[%emt 0:01:13]} 41. Nd4 {[%emt 0:30:13]} Bb7 {[%emt 0:04:43]} 42. Qg3 {[%emt 0:00:00]} 1-0

[Event "45th FIDE Olympiad 2024"]
[Site "Budapest"]
[Date "2024.09.14"]
[Round "4.28"]
[White "Li, Yiheng"]
[Black "Fumey, Enyonam Sewa"]
[Result "1-0"]
[ECO "B01"]
[WhiteElo "1893"]
[BlackElo "1845"]
[PlyCount "49"]
[EventDate "2024.09.05"]
[EventType "team-tourn"]
[EventCountry "HUN"]
[WhiteTeam "Hong Kong, China"]
[BlackTeam "Togo"]
[BlackTeamCountry "TOG"]
[TimeControl "40/5400+30:1800+30"]

1. e4 d5 2. exd5 Nf6 3. Nf3 Nxd5 4. d4 Bf5 5. Bd3 Bxd3 6. Qxd3 e6 7. c4 Nf6 8. Nc3 c6 9. O-O Be7 10. Bf4 Nbd7 11. Rad1 O-O 12. Rfe1 Re8 13. Qe2 Qa5 14. Ne5 Bb4 15. Rd3 Rad8 16. a3 Bxc3 17. Rxc3 Rc8 18. b4 Qb6 19. Rd1 a6 20. Rg3 Kf8 21. Nxd7+ Nxd7 22. Qh5 Kg8 23. Qh6 g6 24. Rh3 Nf8 25. Bd6 1-0

[Event "45th FIDE Olympiad 2024"]
[Site "Budapest"]
[Date "2024.09.14"]
[Round "4.29"]
[White "Grandelius, Nils"]
[Black "Shirov, Alexei"]
[Result "1/2-1/2"]
[ECO "B22"]
[WhiteElo "2653"]
[BlackElo "2666"]
[Annotator "TA"]
[PlyCount "60"]
[EventDate "2024.09.05"]
[EventType "team-tourn"]
[EventCountry "HUN"]
[SourceTitle "playchess.com"]
[Source "ChessBase"]
[SourceQuality "1"]
[WhiteTeam "Sweden"]
[BlackTeam "Spain"]
[WhiteTeamCountry "SWE"]
[BlackTeamCountry "ESP"]
[TimeControl "40/5400+30:1800+30"]

{[%evp 10,60,26,26,28,27,30,0,0,0,0,0,0,0,0,0,0,0,0,0,0,0,0,0,0,0,0,0,0,0,0,0,0,0,0,0,0,0,0,0,0,0,0,0,0,0,0,0,0,0,0,0,0]} 1. e4 {[%emt 0:00:29]} e6 {[%emt 0:00:06]} 2. d4 {[%emt 0:01:00]} d5 {[%emt 0:00:08]} 3. exd5 {[%emt 0:01:27]} exd5 {[%emt 0:00:06]} 4. Nf3 {[%emt 0:00:06]} Nf6 {[%emt 0:00:15]} 5. Bd3 {[%emt 0:00:27]} c5 {[%emt 0:00:15]} 6. c3 {[%emt 0:00:45]} c4 {[%emt 0:00:10]} 7. Bc2 {[%emt 0:00:06]} Bd6 {[%emt 0:00:06]} 8. O-O {[%emt 0:00:30]} O-O {[%emt 0:00:22] The position is equal.} 9. h3 {[%emt 0:00:18]} Nc6 {[%emt 0:04:00]} 10. Bg5 {[%emt 0:01:08]} h6 {[%emt 0:00:13]} 11. Bh4 {[%emt 0:00:04]} g5 {[%emt 0:00:03]} 12. Bg3 {[%emt 0:00:37]} Bxg3 {[%emt 0:00:10]} 13. fxg3 {[%emt 0:00:04]} Nh5 $1 {[%emt 0:00:19]} 14. Kh2 {[%emt 0:13:45]} Qd6 {[%emt 0:01:46] Dodges Ne5} 15. Ne5 $1 {[%emt 0:03:43]} Nxg3 {[%emt 0:01:51]} 16. Kxg3 {[%emt 0:00:26] [#] And now Kf2 would win.} f6 $1 {[%emt 0:00:11][%cal Bf7f6,Bf6e5][%mdl 32]} 17. Na3 $1 {[%emt 0:02:11]} fxe5 {[%emt 0:00:19]} 18. Nb5 {[%emt 0:00:44]} Rxf1 {[%emt 0:00:49]} (18... exd4+ $2 {loses.} 19. Nxd6 g4 20. Qd2 $18 (20. cxd4 Rf3+ 21. gxf3 Be6 $18) (20. Rxf8+ Kxf8 21. Nxc8 Rxc8 $18) (20. cxd4 Be6 $18) (20. Rxf8+ Kxf8 21. Nxc8 Rxc8 $18)) 19. Qh5 {[%emt 0:13:39] Some like it hot} Qf6 {[%emt 0:01:23]} (19... Rxa1 $2 {too greedy.} 20. Nxd6 Rf1 21. dxe5 $18 (21. Qxh6 e4 $18)) 20. Rxf1 {[%emt 0:02:57]} Qxf1 {[%emt 0:00:05][%csl Ge5,Gg5][%cal Rf1f4] [#]} 21. Qg6+ {[%emt 0:02:40]} Kf8 {[%emt 0:00:52][%csl Ge5,Gg5][%cal Rf1f4]} 22. Qxh6+ {[%emt 0:12:36]} Ke7 {[%emt 0:05:58][%csl Ge5,Gg5][%cal Rf1f4]} 23. Qd6+ {[%emt 0:05:45]} Kf7 {[%emt 0:00:12][%csl Ge5,Gg5][%cal Rf1f4]} 24. Qg6+ {[%emt 0:00:17]} Kf8 {[%emt 0:00:47][%csl Ge5,Gg5][%cal Rf1f4]} 25. Qh6+ {[%emt 0:01:58]} Ke7 {[%emt 0:03:39][%csl Ge5,Gg5][%cal Rf1f4]} 26. Qd6+ {[%emt 0:01:48]} Kf7 {[%emt 0:00:14][%csl Ge5,Gg5][%cal Rf1f4]} 27. Qg6+ {[%emt 0:01:26]} Ke7 {[%emt 0:00:05][%csl Ge5,Gg5][%cal Rf1f4]} 28. Qd6+ {[%emt 0:00:08]} Kf7 {[%emt 0:00:04][%csl Ge5,Gg5][%cal Rf1f4]} 29. Qg6+ {[%emt 0:00:06]} Ke7 {[%emt 0:00:03][%csl Ge5,Gg5][%cal Rf1f4]} 30. Qd6+ {[%emt 0:00:06]} Kf7 {[%emt 0:00:05] Not much happened in this game.   Weighted Error Value: White=0.01 (flawless) /Black=0.00 (flawless) .  Inaccurate:     	White=1     	---        OK:         	White=8     	Black=9      Best:        	White=10    	Black=7      Strong:       	White=2     	Black=2} 1/2-1/2

[Event "45th FIDE Olympiad 2024"]
[Site "Budapest"]
[Date "2024.09.14"]
[Round "4.29"]
[White "Asabri, Hussien"]
[Black "AH KYE, Benitot"]
[Result "1-0"]
[ECO "E51"]
[WhiteElo "2196"]
[BlackElo "1815"]
[PlyCount "35"]
[EventDate "2024.09.05"]
[EventType "team-tourn"]
[EventCountry "HUN"]
[WhiteTeam "Libya"]
[BlackTeam "Mauritius"]
[WhiteTeamCountry "LBY"]
[BlackTeamCountry "MRI"]
[TimeControl "40/5400+30:1800+30"]

1. d4 Nf6 2. Nf3 d5 3. c4 e6 4. Nc3 Bb4 5. e3 O-O 6. Bd2 b6 7. Bd3 Ba6 8. Qe2 Be7 9. O-O Nbd7 10. Rfd1 c5 11. b3 Rc8 12. a4 Qc7 13. Nb5 Qb7 14. Ne5 Qb8 15. cxd5 exd5 16. Bf5 Rcd8 17. Nc6 Qb7 18. Nxe7+ 1-0